fUSD/lending_fUSD_20240625
["ID","MTS","AMOUNT","RATE_DAILY","PERIOD"]
[330408536,1719352250670,-500.0,0.00019452,2]
[330408537,1719352250679,-500.0,0.00019452,2]
[330408538,1719352250689,-500.0,0.00019452,2]
[330408539,1719352250698,-500.0,0.00019452,2]
[330408540,1719352250708,-500.0,0.00019452,2]
[330408541,1719352250719,-500.0,0.00019452,2]
[330408542,1719352250729,-1146.78,0.00019452,2]
[330408543,1719352250739,-500.0,0.00019452,2]
[330408544,1719352250749,-1536.37,0.00019452,2]
[330408545,1719352250758,-546.44,0.00019452,2]
[330408546,1719352250767,-788.95,0.00019452,2]
[330408547,1719352250776,-1371.27,0.00019452,2]
[330408548,1719352250786,-1139.29,0.00019452,2]
[330408549,1719352250796,-500.0,0.00019452,2]
[330408550,1719352250806,-500.0,0.00019452,2]
[330408551,1719352250816,-500.0,0.00019452,2]
[330408552,1719352250832,-963.21,0.00019452,2]
[330408553,1719352250842,-500.0,0.00019452,2]
[330408554,1719352250852,-500.0,0.00019452,2]
[330408555,1719352250861,-500.0,0.00019452,2]
[330408556,1719352250870,-1270.24,0.00019452,2]
[330408557,1719352250879,-375.30410081,0.00019452,2]
[330408558,1719352250888,-500.0,0.00019452,2]
[330408559,1719352250899,-652.32,0.00019452,2]
[330408560,1719352250907,-500.0,0.00019452,2]
[330408561,1719352250917,-500.0,0.00019452,2]
[330408562,1719352250926,-500.0,0.00019452,2]
[330408563,1719352250935,-1345.62,0.00019452,2]
[330408564,1719352250944,-601.72,0.00019452,2]
[330408565,1719352250953,-924.25,0.00019452,2]
[330408566,1719352250963,-904.35,0.00019452,2]
[330408567,1719352250972,-670.27,0.00019452,2]
[330408568,1719352250980,-889.47,0.00019452,2]
[330408569,1719352250989,-500.0,0.00019452,2]
[330408570,1719352250999,-500.0,0.00019452,2]
[330408571,1719352251008,-500.0,0.00019452,2]
[330408572,1719352251017,-500.0,0.00019452,2]
[330408573,1719352251027,-500.0,0.00019452,2]
[330408574,1719352251036,-500.0,0.00019452,2]
[330408575,1719352251046,-500.0,0.00019452,2]
[330408576,1719352251055,-869.39,0.00019452,2]
[330408577,1719352251064,-500.0,0.00019452,2]
[330408578,1719352251073,-4839.19,0.00019452,2]
[330408579,1719352251083,-500.0,0.00019452,2]
[330408580,1719352251092,-561.77,0.00019452,2]
[330408581,1719352251101,-536.49,0.00019452,2]
[330408582,1719352251110,-500.0,0.00019452,2]
[330408583,1719352251119,-1170.75,0.00019452,2]
[330408584,1719352251128,-1807.68,0.00019452,2]
[330408585,1719352251137,-500.0,0.00019452,2]
[330408586,1719352251146,-547.95,0.00019452,2]
[330408587,1719352251155,-500.0,0.00019452,2]
[330408588,1719352251165,-16484.42,0.00019452,2]
[330408589,1719352251175,-1446.02,0.00019452,2]
[330408590,1719352251184,-546.02,0.00019452,2]
[330408591,1719352251193,-254.91477493,0.00019452,2]
[330408592,1719352251203,-2066.58,0.00019452,2]
[330408593,1719352251212,-500.0,0.00019452,2]
[330408594,1719352251221,-584.4,0.00019452,2]
[330408595,1719352251231,-500.0,0.00019452,2]
[330408596,1719352251240,-706.36,0.00019452,2]
[330408597,1719352251249,-500.0,0.00019452,2]
[330408598,1719352251260,-176.06885993,0.00019452,2]
[330408599,1719352251743,-741.39114007,0.00019452,2]
[330408600,1719352251753,-583.26075652,0.00019452,2]
[330408601,1719352251762,-500.0,0.00019452,2]
[330408602,1719352251771,-740.46,0.00019452,2]
[330408603,1719352251780,-873.06,0.00019452,2]
[330408604,1719352251789,-782.58,0.00019452,2]
[330408605,1719352251799,-500.0,0.00019452,2]
[330408606,1719352251808,-1950.80407817,0.00019452,2]
[330408607,1719352252964,-7113.01999999,0.00019178,2]
[330408608,1719352252976,-3067.08000001,0.00019178,2]
[330408609,1719352252985,-192.83592183,0.00019452,2]
[330408610,1719352252995,-500.0,0.00019452,2]
[330408611,1719352253005,-569.41449709,0.00019452,2]
[330408612,1719352253015,-325.30550291,0.00019452,2]
[330408613,1719352253024,-601.93,0.00019452,2]
[330408614,1719352253036,-647.41,0.00019452,2]
[330408615,1719352253045,-558.13,0.00019452,2]
[330408616,1719352253056,-868.74,0.00019452,2]
[330408617,1719352253065,-500.0,0.00019452,2]
[330408618,1719352253075,-558.13,0.00019452,2]
[330408619,1719352253084,-500.0,0.00019452,2]
[330408620,1719352253093,-711.28,0.00019452,2]
[330408621,1719352253102,-500.0,0.00019452,2]
[330408622,1719352253111,-338.17976707,0.00019452,2]
[330408623,1719352253119,-500.0,0.00019452,2]
[330408624,1719352253129,-505.9,0.00019452,2]
[330408625,1719352253138,-926.61,0.00019452,2]
[330408626,1719352253147,-500.0,0.00019452,2]
[330408627,1719352253156,-1332.51,0.00019452,2]
[330408628,1719352253165,-763.17,0.00019452,2]
[330408629,1719352253174,-500.0,0.00019452,2]
[330408630,1719352253183,-500.0,0.00019452,2]
[330408631,1719352253193,-500.0,0.00019452,2]
[330408632,1719352253202,-500.0,0.00019452,2]
[330408633,1719352253211,-673.38,0.00019452,2]
[330408634,1719352253219,-500.0,0.00019452,2]
[330408635,1719352253228,-500.0,0.00019452,2]
[330408636,1719352253238,-500.0,0.00019452,2]
[330408637,1719352253247,-603.99,0.00019452,2]
[330408638,1719352253256,-500.0,0.00019452,2]
[330408639,1719352253266,-500.0,0.00019452,2]
[330408640,1719352253275,-500.0,0.00019452,2]
[330408641,1719352253284,-1305.33,0.00019452,2]
[330408642,1719352253293,-500.0,0.00019452,2]
[330408643,1719352253301,-500.0,0.00019452,2]
[330408644,1719352253310,-500.0,0.00019452,2]
[330408645,1719352253318,-37.05537115,0.00019452,2]
[330408646,1719352253331,-478.67462885,0.00019452,2]
[330408647,1719352253340,-500.0,0.00019452,2]
[330408648,1719352253349,-1497.95,0.00019452,2]
[330408649,1719352253358,-500.0,0.00019452,2]
[330408650,1719352253367,-1729.92,0.00019452,2]
[330408651,1719352253376,-687.27,0.00019452,2]
[330408652,1719352253386,-500.0,0.00019452,2]
[330408653,1719352253395,-500.0,0.00019452,2]
[330408654,1719352253404,-778.68,0.00019452,2]
[330408655,1719352253413,-500.0,0.00019452,2]
[330408656,1719352253422,-500.0,0.00019452,2]
[330408657,1719352253432,-1861.06,0.00019452,2]
[330408658,1719352253442,-500.0,0.00019452,2]
[330408659,1719352253452,-500.0,0.00019452,2]
[330408660,1719352253461,-500.0,0.00019452,2]
[330408661,1719352253471,-1689.55,0.00019452,2]
[330408662,1719352253480,-500.0,0.00019452,2]
[330408663,1719352253489,-500.0,0.00019452,2]
[330408664,1719352253498,-211.94050334,0.00019452,2]
[330408665,1719352253511,-590.66949666,0.00019452,2]
[330408666,1719352253520,-60.29879115,0.00019452,2]
[330408667,1719352253532,-2563.05120885,0.00019452,2]
[330408668,1719352253541,-633.65,0.00019452,2]
[330408669,1719352253551,-500.0,0.00019452,2]
[330408670,1719352253560,-500.0,0.00019452,2]
[330408671,1719352253570,-664.01,0.00019452,2]
[330408672,1719352253579,-500.0,0.00019452,2]
[330408673,1719352253590,-557.62,0.00019452,2]
[330408674,1719352253599,-643.18,0.00019452,2]
[330408675,1719352253609,-1974.86,0.00019452,2]
[330408676,1719352253618,-500.0,0.00019452,2]
[330408677,1719352253628,-939.5,0.00019452,2]
[330408678,1719352253637,-500.0,0.00019452,2]
[330408679,1719352253647,-500.0,0.00019452,2]
[330408680,1719352253656,-350.27218769,0.00019452,2]
[330408681,1719352253669,-149.72781231,0.00019452,2]
[330408682,1719352253680,-500.0,0.00019452,2]
[330408683,1719352253689,-123.77582034,0.00019452,2]
[330408684,1719352253700,-302.09356369,0.00019452,2]
[330408685,1719352253712,-85.5989608,0.00019452,2]
[330408686,1719352253722,-500.0,0.00019452,2]
[330408687,1719352253732,-500.0,0.00019452,2]
[330408688,1719352253741,-646.92,0.00019452,2]
[330408689,1719352253752,-1056.7,0.00019452,2]
[330408690,1719352253762,-500.0,0.00019452,2]
[330408691,1719352253773,-903.84,0.00019452,2]
[330408692,1719352253784,-500.0,0.00019452,2]
[330408693,1719352253795,-599.89,0.00019452,2]
[330408694,1719352253805,-500.0,0.00019452,2]
[330408695,1719352253815,-615.03,0.00019452,2]
[330408696,1719352253830,-500.0,0.00019452,2]
[330408697,1719352253840,-500.0,0.00019452,2]
[330408698,1719352253850,-640.46057179,0.00019452,2]
[330408699,1719352253861,-500.0,0.00019452,2]
[330408700,1719352253870,-898.63,0.00019452,2]
[330408701,1719352253879,-500.0,0.00019452,2]
[330408702,1719352253888,-237.843607,0.00019452,2]
[330408703,1719352253933,-262.156393,0.00019452,2]
[330408704,1719352253943,-1557.02,0.00019452,2]
[330408705,1719352253952,-172.31728904,0.00019452,2]
[330408706,1719352253961,-1759.78,0.00019452,2]
[330408707,1719352253970,-500.0,0.00019452,2]
[330408708,1719352253980,-283.37653563,0.00019452,2]
[330408709,1719352253989,-500.0,0.00019452,2]
[330408710,1719352253998,-500.0,0.00019452,2]
[330408711,1719352254007,-570.1,0.00019452,2]
[330408712,1719352254017,-652.69,0.00019452,2]
[330408713,1719352254026,-500.0,0.00019452,2]
[330408714,1719352254036,-500.0,0.00019452,2]
[330408715,1719352254045,-500.0,0.00019452,2]
[330408716,1719352254054,-500.0,0.00019452,2]
[330408717,1719352254063,-367.9767926,0.00019452,2]
[330408718,1719352254076,-636.8432074,0.00019452,2]
[330408719,1719352254085,-27.98952064,0.00019452,2]
[330408720,1719352254097,-193.46447786,0.00019452,2]
[330408721,1719352254106,-500.0,0.00019452,2]
[330408722,1719352254115,-500.0,0.00019452,2]
[330408723,1719352254125,-2098.70009714,0.00019452,2]
[330408724,1719352254136,-212.63990286,0.00019452,2]
[330408725,1719352254146,-496.53009714,0.00019452,2]
[330408726,1719352254157,-3.46990286,0.00019452,2]
[330408727,1719352254167,-1505.77,0.00019452,2]
[330408728,1719352254177,-500.0,0.00019452,2]
[330408729,1719352254187,-500.0,0.00019452,2]
[330408730,1719352254196,-1023.65,0.00019452,2]
[330408731,1719352254206,-500.0,0.00019452,2]
[330408732,1719352254215,-1566.48,0.00019452,2]
[330408733,1719352254225,-1556.61,0.00019452,2]
[330408734,1719352254235,-5171.19,0.00019452,2]
[330408735,1719352254244,-500.0,0.00019452,2]
[330408736,1719352254253,-500.0,0.00019452,2]
[330408737,1719352254263,-2317.93,0.00019452,2]
[330408738,1719352254272,-500.0,0.00019452,2]
[330408739,1719352254283,-1285.27,0.00019452,2]
[330408740,1719352254292,-490.53916651,0.00019452,2]
[330408741,1719352254304,-9.46083349,0.00019452,2]
[330408742,1719352254314,-500.0,0.00019452,2]
[330408743,1719352254324,-714.11,0.00019452,2]
[330408744,1719352254333,-500.0,0.00019452,2]
[330408745,1719352254343,-42.07716651,0.00019452,2]
[330408746,1719352254354,-457.92283349,0.00019452,2]
[330408747,1719352254364,-500.0,0.00019452,2]
[330408748,1719352254373,-1119.1,0.00019452,2]
[330408749,1719352254383,-2103.7,0.00019452,2]
[330408750,1719352254393,-600.69620416,0.00019452,2]
[330408751,1719352254402,-500.0,0.00019452,2]
[330408752,1719352254412,-500.0,0.00019452,2]
[330408753,1719352254421,-1434.15,0.00019452,2]
[330408754,1719352254431,-500.0,0.00019452,2]
[330408755,1719352254442,-500.0,0.00019452,2]
[330408756,1719352254451,-500.0,0.00019452,2]
[330408757,1719352254461,-500.0,0.00019452,2]
[330408758,1719352254471,-500.0,0.00019452,2]
[330408759,1719352254480,-1926.75,0.00019452,2]
[330408760,1719352254489,-500.0,0.00019452,2]
[330408761,1719352254499,-500.0,0.00019452,2]
[330408762,1719352254509,-1025.16,0.00019452,2]
[330408763,1719352254519,-624.5,0.00019452,2]
[330408764,1719352254528,-500.0,0.00019452,2]
[330408765,1719352254538,-738.33,0.00019452,2]
[330408766,1719352254547,-500.0,0.00019452,2]
[330408767,1719352254556,-1737.29,0.00019452,2]
[330408768,1719352254566,-5754.16820727,0.00019452,2]
[330408769,1719352255141,-1090.13,0.00019178,2]
[330408770,1719352255154,-202.234183,0.00019178,2]
[330408771,1719352255164,-202.234183,0.00019178,2]
[330408772,1719352255173,-6542.166845,0.00019452,2]
[330408773,1719352255185,-4774.15494773,0.00019452,2]
[330408774,1719352255194,-500.0,0.00019452,2]
[330408775,1719352255204,-500.0,0.00019452,2]
[330408776,1719352255214,-500.0,0.00019452,2]
[330408777,1719352255223,-500.0,0.00019452,2]
[330408778,1719352255233,-500.0,0.00019452,2]
[330408779,1719352255243,-941.07,0.00019452,2]
[330408780,1719352255252,-1023.01,0.00019452,2]
[330408781,1719352255261,-500.0,0.00019452,2]
[330408782,1719352255271,-500.0,0.00019452,2]
[330408783,1719352255280,-231.35069761,0.00019452,2]
[330408784,1719352255292,-268.64930239,0.00019452,2]
[330408785,1719352255302,-500.69,0.00019452,2]
[330408786,1719352255312,-205.46183834,0.00019452,2]
[330408787,1719352255321,-486.64249779,0.00019452,2]
[330408788,1719352255334,-525.79750221,0.00019452,2]
[330408789,1719352255343,-876.51,0.00019452,2]
[330408790,1719352255353,-500.0,0.00019452,2]
[330408791,1719352255363,-6897.69,0.00019452,2]
[330408792,1719352255373,-18642.89,0.00019452,2]
[330408793,1719352255382,-500.0,0.00019452,2]
[330408794,1719352255391,-3628.76,0.00019452,2]
[330408795,1719352255401,-500.0,0.00019452,2]
[330408796,1719352255411,-500.0,0.00019452,2]
[330408797,1719352255420,-500.0,0.00019452,2]
[330408798,1719352255430,-500.0,0.00019452,2]
[330408799,1719352255442,-500.0,0.00019452,2]
[330408800,1719352255454,-1048.82,0.00019452,2]
[330408801,1719352255464,-500.0,0.00019452,2]
[330408802,1719352255474,-500.0,0.00019452,2]
[330408803,1719352255486,-2112.28,0.00019452,2]
[330408804,1719352255496,-500.0,0.00019452,2]
[330408805,1719352255506,-500.0,0.00019452,2]
[330408806,1719352255515,-5328.41,0.00019452,2]
[330408807,1719352255525,-500.0,0.00019452,2]
[330408808,1719352255535,-500.0,0.00019452,2]
[330408809,1719352255544,-500.0,0.00019452,2]
[330408810,1719352255554,-547.42,0.00019452,2]
[330408811,1719352255564,-1033.26,0.00019452,2]
[330408812,1719352255574,-1413.51,0.00019452,2]
[330408813,1719352255583,-620.71,0.00019452,2]
[330408814,1719352255593,-500.0,0.00019452,2]
[330408815,1719352255604,-500.0,0.00019452,2]
[330408816,1719352255613,-1141.05,0.00019452,2]
[330408817,1719352255623,-820.66,0.00019452,2]
[330408818,1719352255632,-500.0,0.00019452,2]
[330408819,1719352255642,-500.0,0.00019452,2]
[330408820,1719352255651,-563.36,0.00019452,2]
[330408821,1719352255662,-740.05,0.00019452,2]
[330408822,1719352255672,-705.27,0.00019452,2]
[330408823,1719352255682,-500.0,0.00019452,2]
[330408824,1719352255691,-3565.11,0.00019452,2]
[330408825,1719352255700,-1249.54,0.00019452,2]
[330408826,1719352255709,-1828.41,0.00019452,2]
[330408827,1719352255718,-1003.4,0.00019452,2]
[330408828,1719352255727,-500.0,0.00019452,2]
[330408829,1719352255738,-500.0,0.00019452,2]
[330408830,1719352255747,-1197.5,0.00019452,2]
[330408831,1719352255756,-500.0,0.00019452,2]
[330408832,1719352255766,-500.0,0.00019452,2]
[330408833,1719352255775,-906.6,0.00019452,2]
[330408834,1719352255784,-500.0,0.00019452,2]
[330408835,1719352255794,-500.0,0.00019452,2]
[330408836,1719352255804,-1209.71,0.00019452,2]
[330408837,1719352255814,-500.0,0.00019452,2]
[330408838,1719352255828,-730.85,0.00019452,2]
[330408839,1719352255838,-1093.41,0.00019452,2]
[330408840,1719352255848,-2213.63,0.00019452,2]
[330408841,1719352255856,-767.49,0.00019452,2]
[330408842,1719352255867,-500.0,0.00019452,2]
[330408843,1719352255877,-500.0,0.00019452,2]
[330408844,1719352255887,-542.84,0.00019452,2]
[330408845,1719352255896,-500.0,0.00019452,2]
[330408846,1719352255906,-500.0,0.00019452,2]
[330408847,1719352255916,-5821.33,0.00019452,2]
[330408848,1719352255925,-500.0,0.00019452,2]
[330408849,1719352255935,-1191.14,0.00019452,2]
[330408850,1719352255947,-500.0,0.00019452,2]
[330408851,1719352255956,-500.0,0.00019452,2]
[330408852,1719352255965,-1314.09,0.00019452,2]
[330408853,1719352255975,-1392.93,0.00019452,2]
[330408854,1719352255984,-1044.97,0.00019452,2]
[330408855,1719352255994,-6682.31447053,0.00019452,2]
[330408856,1719352256021,-11267.20552947,0.00019452,2]
[330408857,1719352256031,-500.0,0.00019452,2]
[330408858,1719352256040,-515.99,0.00019452,2]
[330408859,1719352256051,-500.0,0.00019452,2]
[330408860,1719352256060,-940.94,0.00019452,2]
[330408861,1719352256071,-671.68,0.00019452,2]
[330408862,1719352256080,-500.0,0.00019452,2]
[330408863,1719352256090,-1448.7011538,0.00019452,2]
[330408864,1719352256104,-890.31731708,0.00019452,2]
[330408865,1719352256115,-2403.57912576,0.00019452,2]
[330408866,1719352256159,-158.09240336,0.00019452,2]
[330408867,1719352256171,-500.0,0.00019452,2]
[330408868,1719352256181,-5271.3,0.00019452,2]
[330408869,1719352256192,-500.0,0.00019452,2]
[330408870,1719352256202,-500.0,0.00019452,2]
[330408871,1719352256212,-751.51,0.00019452,2]
[330408872,1719352256224,-500.0,0.00019452,2]
[330408873,1719352256235,-500.0,0.00019452,2]
[330408874,1719352256246,-500.0,0.00019452,2]
[330408875,1719352256255,-500.0,0.00019452,2]
[330408876,1719352256265,-500.0,0.00019452,2]
[330408877,1719352256275,-922.81,0.00019452,2]
[330408878,1719352256285,-3406.73,0.00019452,2]
[330408879,1719352256294,-500.0,0.00019452,2]
[330408880,1719352256304,-600.28,0.00019452,2]
[330408881,1719352256314,-500.0,0.00019452,2]
[330408882,1719352256324,-951.47,0.00019452,2]
[330408883,1719352256333,-500.0,0.00019452,2]
[330408884,1719352256343,-500.0,0.00019452,2]
[330408885,1719352256353,-500.0,0.00019452,2]
[330408886,1719352256363,-673.55,0.00019452,2]
[330408887,1719352256373,-1579.23,0.00019452,2]
[330408888,1719352256382,-500.0,0.00019452,2]
[330408889,1719352256392,-2027.38,0.00019452,2]
[330408890,1719352256402,-500.0,0.00019452,2]
[330408891,1719352256411,-574.78,0.00019452,2]
[330408892,1719352256421,-983.94,0.00019452,2]
[330408893,1719352256431,-1094.45,0.00019452,2]
[330408894,1719352256442,-500.0,0.00019452,2]
[330408895,1719352256451,-539.41,0.00019452,2]
[330408896,1719352256461,-1048.85,0.00019452,2]
[330408897,1719352256470,-500.0,0.00019452,2]
[330408898,1719352256480,-515.57,0.00019452,2]
[330408899,1719352256490,-3209.09,0.00019452,2]
[330408900,1719352256500,-639.21,0.00019452,2]
[330408901,1719352256509,-500.0,0.00019452,2]
[330408902,1719352256519,-10985.92,0.00019452,2]
[330408903,1719352256529,-500.0,0.00019452,2]
[330408904,1719352256539,-500.0,0.00019452,2]
[330408905,1719352256549,-500.0,0.00019452,2]
[330408906,1719352256559,-690.92,0.00019452,2]
[330408907,1719352256569,-500.0,0.00019452,2]
[330408908,1719352256578,-933.4,0.00019452,2]
[330408909,1719352256588,-500.0,0.00019452,2]
[330408910,1719352256597,-1609.87,0.00019452,2]
[330408911,1719352256606,-500.0,0.00019452,2]
[330408912,1719352256616,-500.0,0.00019452,2]
[330408913,1719352256626,-500.0,0.00019452,2]
[330408914,1719352256635,-500.0,0.00019452,2]
[330408915,1719352256644,-549.93722731,0.00019452,2]
[330408916,1719352256654,-5231.72,0.00019452,2]
[330408917,1719352256665,-500.0,0.00019452,2]
[330408918,1719352256675,-500.0,0.00019452,2]
[330408919,1719352256685,-1527.91,0.00019452,2]
[330408920,1719352256694,-557.58,0.00019452,2]
[330408921,1719352256708,-500.0,0.00019452,2]
[330408922,1719352256718,-500.0,0.00019452,2]
[330408923,1719352256728,-385.50175213,0.00019452,2]
[330408924,1719352256739,-2019.68,0.00019452,2]
[330408925,1719352256749,-1263.36,0.00019452,2]
[330408926,1719352256760,-896.87,0.00019452,2]
[330408927,1719352256770,-500.0,0.00019452,2]
[330408928,1719352256782,-500.0,0.00019452,2]
[330408929,1719352256792,-5130.51,0.00019452,2]
[330408930,1719352256803,-500.0,0.00019452,2]
[330408931,1719352256813,-500.0,0.00019452,2]
[330408932,1719352256826,-500.0,0.00019452,2]
[330408933,1719352256837,-500.0,0.00019452,2]
[330408934,1719352256847,-2592.47,0.00019452,2]
[330408935,1719352256856,-500.0,0.00019452,2]
[330408936,1719352256867,-531.61,0.00019452,2]
[330408937,1719352256877,-788.25,0.00019452,2]
[330408938,1719352256886,-2096.24,0.00019452,2]
[330408939,1719352256897,-500.0,0.00019452,2]
[330408940,1719352256908,-500.0,0.00019452,2]
[330408941,1719352256918,-500.0,0.00019452,2]
[330408942,1719352256928,-1694.14,0.00019452,2]
[330408943,1719352256938,-588.15,0.00019452,2]
[330408944,1719352256949,-1923.77,0.00019452,2]
[330408945,1719352256958,-500.0,0.00019452,2]
[330408946,1719352256968,-603.68,0.00019452,2]
[330408947,1719352256977,-500.0,0.00019452,2]
[330408948,1719352256988,-714.32,0.00019452,2]
[330408949,1719352256999,-976.6,0.00019452,2]
[330408950,1719352257008,-1418.6,0.00019452,2]
[330408951,1719352257018,-500.0,0.00019452,2]
[330408952,1719352257027,-500.0,0.00019452,2]
[330408953,1719352257037,-926.82,0.00019452,2]
[330408954,1719352257047,-1625.35,0.00019452,2]
[330408955,1719352257055,-1247.78,0.00019452,2]
[330408956,1719352257064,-500.0,0.00019452,2]
[330408957,1719352257074,-500.0,0.00019452,2]
[330408958,1719352257084,-500.0,0.00019452,2]
[330408959,1719352257094,-500.0,0.00019452,2]
[330408960,1719352257104,-500.0,0.00019452,2]
[330408961,1719352257115,-1204.26,0.00019452,2]
[330408962,1719352257126,-1407.88,0.00019452,2]
[330408963,1719352257136,-500.0,0.00019452,2]
[330408964,1719352257145,-912.56,0.00019452,2]
[330408965,1719352257157,-788.71,0.00019452,2]
[330408966,1719352257166,-19204.3,0.00019452,2]
[330408967,1719352257175,-1372.93,0.00019452,2]
[330408968,1719352257185,-500.0,0.00019452,2]
[330408969,1719352257196,-500.0,0.00019452,2]
[330408970,1719352257205,-1394.05,0.00019452,2]
[330408971,1719352257219,-1179.74,0.00019452,2]
[330408972,1719352257229,-698.02,0.00019452,2]
[330408973,1719352257240,-601.69,0.00019452,2]
[330408974,1719352257250,-500.0,0.00019452,2]
[330408975,1719352257260,-1063.43,0.00019452,2]
[330408976,1719352257270,-539.59,0.00019452,2]
[330408977,1719352257279,-500.0,0.00019452,2]
[330408978,1719352257289,-500.0,0.00019452,2]
[330408979,1719352257299,-500.0,0.00019452,2]
[330408980,1719352257308,-500.0,0.00019452,2]
[330408981,1719352257320,-1447.21,0.00019452,2]
[330408982,1719352257330,-907.08,0.00019452,2]
[330408983,1719352257339,-500.0,0.00019452,2]
[330408984,1719352257349,-500.0,0.00019452,2]
[330408985,1719352257359,-983.41,0.00019452,2]
[330408986,1719352257369,-828.83,0.00019452,2]
[330408987,1719352257379,-3055.87,0.00019452,2]
[330408988,1719352257388,-7141.31,0.00019452,2]
[330408989,1719352257398,-764.97,0.00019452,2]
[330408990,1719352257408,-500.0,0.00019452,2]
[330408991,1719352257417,-500.0,0.00019452,2]
[330408992,1719352257427,-1273.2,0.00019452,2]
[330408993,1719352257437,-2361.25,0.00019452,2]
[330408994,1719352257447,-500.0,0.00019452,2]
[330408995,1719352257469,-964.67,0.00019452,2]
[330408996,1719352257479,-956.9,0.00019452,2]
[330408997,1719352257489,-1172.67,0.00019452,2]
[330408998,1719352257498,-500.0,0.00019452,2]
[330408999,1719352257507,-500.0,0.00019452,2]
[330409000,1719352257517,-500.0,0.00019452,2]
[330409001,1719352257526,-208.58340402,0.00019452,2]
[330409002,1719352257536,-1025.54,0.00019452,2]
[330409003,1719352257545,-500.0,0.00019452,2]
[330409004,1719352257555,-3781.23,0.00019452,2]
[330409005,1719352257564,-163.03051128,0.00019452,2]
[330409006,1719352257574,-500.0,0.00019452,2]
[330409007,1719352257583,-2345.6,0.00019452,2]
[330409008,1719352257594,-500.0,0.00019452,2]
[330409009,1719352257604,-616.47,0.00019452,2]
[330409010,1719352257613,-1845.86,0.00019452,2]
[330409011,1719352257622,-738.71,0.00019452,2]
[330409012,1719352257632,-854.12,0.00019452,2]
[330409013,1719352257641,-3326.98,0.00019452,2]
[330409014,1719352257650,-515.6673211,0.00019452,2]
[330409015,1719352257662,-876.38,0.00019452,2]
[330409016,1719352257671,-707.74,0.00019452,2]
[330409017,1719352257681,-500.0,0.00019452,2]
[330409018,1719352257691,-610.76,0.00019452,2]
[330409019,1719352257700,-657.99,0.00019452,2]
[330409020,1719352257710,-500.0,0.00019452,2]
[330409021,1719352257719,-1085.67,0.00019452,2]
[330409022,1719352257728,-10180.1,0.00019452,2]
[330409023,1719352257737,-1090.13,0.00019452,2]
[330409024,1719352257747,-202.234183,0.00019452,2]
[330409025,1719352257756,-500.0,0.00019567,2]
[330409026,1719352257766,-484.21985928,0.00019626,2]
[330409027,1719352257775,-3419.39032618,0.00019626,2]
[330409028,1719352257784,-213.03593626,0.00019626,3]
[330409029,1719352257793,-293.2750998,0.00019626,2]
[330409030,1719352257803,-4003.417279,0.00019717,2]
[330409031,1719352257812,-24568.1578567,0.00019717,2]
[330409032,1719352257822,-11036.5468704,0.00019717,2]
[330409033,1719352257834,-8654.9286327,0.00019717,2]
[330409034,1719352257845,-178.18541926,0.00019725,2]
[330409035,1719352257854,-3224.69825091,0.00019725,2]